[Event "Titled Tuesday Blitz January 10 Late 2023"]
[White "Ivic, Velimir"]
[Black "Domingo Nunez, Ruben"]
[WhiteFideId "950122"]
[BlackFideId "22245570"]
[WhiteElo "2595"]
[BlackElo "2416"]
[Result "1-0"]
[Round "08"]
[TimeControl "180+2"]
[Date "2023.01.10"]
[WhiteClock "0:02:09"]
[BlackClock "0:01:30"]

1. d4 {[%clk 0:00:00]}  g6 {[%clk 0:00:00]} 2. c4 {[%clk 0:03:00]}  Bg7 {[%clk 0:02:57]} 3. Nc3 {[%clk 0:03:01]}  d6 {[%clk 0:02:58]} 4. e4 {[%clk 0:03:02]}  Nd7 {[%clk 0:02:58]} 5. Nf3 {[%clk 0:03:02]}  e5 {[%clk 0:02:58]} 6. Be2 {[%clk 0:03:02]}  Ngf6 {[%clk 0:02:59]} 7. O-O {[%clk 0:03:03]}  O-O {[%clk 0:02:59]} 8. Qc2 {[%clk 0:03:03]}  exd4 {[%clk 0:03:00]} 9. Nxd4 {[%clk 0:03:00]}  Re8 {[%clk 0:03:00]} 10. Be3 {[%clk 0:03:00]}  Nc5 {[%clk 0:03:01]} 11. f3 {[%clk 0:02:58]}  Nh5 {[%clk 0:03:00]} 12. Qd2 {[%clk 0:02:58]}  Ne6 {[%clk 0:02:58]} 13. Nxe6 {[%clk 0:02:52]}  Bxe6 {[%clk 0:02:58]} 14. Rad1 {[%clk 0:02:50]}  Be5 {[%clk 0:02:59]} 15. f4 {[%clk 0:02:48]}  Bg7 {[%clk 0:02:59]} 16. f5 {[%clk 0:02:47]}  Bd7 {[%clk 0:02:59]} 17. Bxh5 {[%clk 0:02:40]}  gxh5 {[%clk 0:02:57]} 18. Nd5 {[%clk 0:02:40]}  Rxe4 {[%clk 0:02:57]} 19. f6 {[%clk 0:02:26]}  Bf8 {[%clk 0:02:50]} 20. Bh6 {[%clk 0:02:26]}  Rg4 {[%clk 0:02:48]} 21. h3 {[%clk 0:02:20]}  Rg6 {[%clk 0:02:48]} 22. Bxf8 {[%clk 0:02:15]}  Kxf8 {[%clk 0:02:47]} 23. Ne7 {[%clk 0:02:15]}  Be6 {[%clk 0:02:46]} 24. Nxg6+ {[%clk 0:02:14]}  hxg6 {[%clk 0:02:08]} 25. Rde1 {[%clk 0:02:12]}  Kg8 {[%clk 0:02:09]} 26. Rxe6 {[%clk 0:02:10]}  fxe6 {[%clk 0:01:30]} 27. Qh6 {[%clk 0:02:09]} 1-0


[Site "https://www.chess.com"]

[Event "Titled Tuesday Blitz January 10 Late 2023"]
[White "Holt, Conrad"]
[Black "Mikhailov, Viacheslav"]
[WhiteFideId "2034387"]
[BlackFideId "4187369"]
[WhiteElo "2540"]
[BlackElo "2428"]
[Result "1-0"]
[Round "08"]
[TimeControl "180+2"]
[Date "2023.01.10"]
[WhiteClock "0:00:12"]
[BlackClock "0:00:01"]

1. d4 {[%clk 0:00:00]}  c5 {[%clk 0:00:00]} 2. d5 {[%clk 0:03:00]}  e5 {[%clk 0:02:36]} 3. c4 {[%clk 0:03:00]}  d6 {[%clk 0:02:36]} 4. e4 {[%clk 0:02:55]}  Be7 {[%clk 0:02:36]} 5. Nf3 {[%clk 0:02:55]}  a6 {[%clk 0:02:37]} 6. Be2 {[%clk 0:02:55]}  Bg4 {[%clk 0:02:37]} 7. Qb3 {[%clk 0:02:49]}  Bxf3 {[%clk 0:02:37]} 8. Qxf3 {[%clk 0:02:41]}  Bg5 {[%clk 0:02:30]} 9. Bxg5 {[%clk 0:02:35]}  Qxg5 {[%clk 0:02:29]} 10. O-O {[%clk 0:02:25]}  Ne7 {[%clk 0:02:30]} 11. Qb3 {[%clk 0:02:25]}  Nd7 {[%clk 0:02:31]} 12. Qxb7 {[%clk 0:02:24]}  Rd8 {[%clk 0:01:46]} 13. Qxa6 {[%clk 0:02:18]}  Nf6 {[%clk 0:01:47]} 14. Qa4+ {[%clk 0:02:15]}  Rd7 {[%clk 0:01:45]} 15. Nc3 {[%clk 0:02:13]}  O-O {[%clk 0:01:42]} 16. Qc2 {[%clk 0:02:11]}  Ng6 {[%clk 0:01:42]} 17. Kh1 {[%clk 0:02:09]}  Qh4 {[%clk 0:01:42]} 18. g3 {[%clk 0:02:06]}  Qh3 {[%clk 0:01:28]} 19. Qd2 {[%clk 0:02:06]}  Rb8 {[%clk 0:01:28]} 20. b3 {[%clk 0:01:51]}  h5 {[%clk 0:01:14]} 21. Qg5 {[%clk 0:01:48]}  Nf4 {[%clk 0:00:58]} 22. gxf4 {[%clk 0:01:20]}  Qxc3 {[%clk 0:00:58]} 23. Rg1 {[%clk 0:01:20]}  Ne8 {[%clk 0:00:59]} 24. fxe5 {[%clk 0:01:20]}  dxe5 {[%clk 0:00:53]} 25. Bxh5 {[%clk 0:01:09]}  Rb6 {[%clk 0:00:51]} 26. Qg3 {[%clk 0:01:08]}  Qb2 {[%clk 0:00:47]} 27. Rab1 {[%clk 0:00:54]}  Qxa2 {[%clk 0:00:42]} 28. Qxe5 {[%clk 0:00:49]}  Nf6 {[%clk 0:00:17]} 29. Bf3 {[%clk 0:00:48]}  Rd8 {[%clk 0:00:17]} 30. Qg5 {[%clk 0:00:33]}  g6 {[%clk 0:00:17]} 31. e5 {[%clk 0:00:30]}  Qxf2 {[%clk 0:00:05]} 32. Rbf1 {[%clk 0:00:30]}  Qc2 {[%clk 0:00:01]} 33. exf6 {[%clk 0:00:29]}  Rdd6 {[%clk 0:00:01]} 34. Bg2 {[%clk 0:00:23]}  Qxb3 {[%clk 0:00:01]} 35. Rf4 {[%clk 0:00:12]} 1-0


[Site "https://www.chess.com"]

[Event "Titled Tuesday Blitz January 10 Late 2023"]
[White "Vlassov, Nikolai"]
[Black "Kuznetsov, Felix"]
[WhiteFideId "4103360"]
[BlackFideId "34147990"]
[WhiteElo "2283"]
[BlackElo "2254"]
[Result "1-0"]
[Round "08"]
[TimeControl "180+2"]
[Date "2023.01.10"]
[WhiteClock "0:00:53"]
[BlackClock "0:00:02"]

1. e4 {[%clk 0:00:00]}  c5 {[%clk 0:00:00]} 2. c3 {[%clk 0:03:00]}  d5 {[%clk 0:02:59]} 3. exd5 {[%clk 0:03:00]}  Qxd5 {[%clk 0:02:59]} 4. d4 {[%clk 0:03:01]}  Nf6 {[%clk 0:03:00]} 5. Nf3 {[%clk 0:03:01]}  Bg4 {[%clk 0:03:00]} 6. dxc5 {[%clk 0:03:01]}  Qxd1+ {[%clk 0:02:59]} 7. Kxd1 {[%clk 0:03:01]}  Nc6 {[%clk 0:02:58]} 8. b4 {[%clk 0:03:02]}  e5 {[%clk 0:02:57]} 9. h3 {[%clk 0:03:01]}  Bxf3+ {[%clk 0:02:48]} 10. gxf3 {[%clk 0:02:56]}  O-O-O+ {[%clk 0:02:47]} 11. Kc2 {[%clk 0:02:57]}  Nd5 {[%clk 0:02:43]} 12. Bc4 {[%clk 0:02:56]}  Be7 {[%clk 0:02:41]} 13. Na3 {[%clk 0:02:48]}  f6 {[%clk 0:02:35]} 14. Bxd5 {[%clk 0:02:40]}  Rxd5 {[%clk 0:02:28]} 15. Be3 {[%clk 0:02:36]}  Rhd8 {[%clk 0:02:28]} 16. Rad1 {[%clk 0:02:36]}  Rxd1 {[%clk 0:02:13]} 17. Rxd1 {[%clk 0:02:35]}  Rxd1 {[%clk 0:02:13]} 18. Kxd1 {[%clk 0:02:35]}  Kd7 {[%clk 0:02:14]} 19. Kc2 {[%clk 0:02:36]}  Ke6 {[%clk 0:02:14]} 20. Nc4 {[%clk 0:02:35]}  Kd5 {[%clk 0:02:15]} 21. Kb3 {[%clk 0:02:25]}  f5 {[%clk 0:02:08]} 22. Bc1 {[%clk 0:02:16]}  h5 {[%clk 0:02:05]} 23. a4 {[%clk 0:02:03]}  Ke6 {[%clk 0:01:43]} 24. Be3 {[%clk 0:01:59]}  g5 {[%clk 0:01:37]} 25. b5 {[%clk 0:01:43]}  Nd8 {[%clk 0:01:13]} 26. c6 {[%clk 0:01:42]}  bxc6 {[%clk 0:01:09]} 27. Bxa7 {[%clk 0:01:42]}  cxb5 {[%clk 0:01:09]} 28. axb5 {[%clk 0:01:41]}  Nb7 {[%clk 0:01:08]} 29. Bb6 {[%clk 0:01:41]}  g4 {[%clk 0:00:54]} 30. fxg4 {[%clk 0:01:29]}  fxg4 {[%clk 0:00:44]} 31. hxg4 {[%clk 0:01:29]}  h4 {[%clk 0:00:44]} 32. Ne3 {[%clk 0:01:28]}  h3 {[%clk 0:00:44]} 33. Nf1 {[%clk 0:01:18]}  Kd5 {[%clk 0:00:44]} 34. c4+ {[%clk 0:01:18]}  Ke4 {[%clk 0:00:38]} 35. Nh2 {[%clk 0:01:05]}  Nc5+ {[%clk 0:00:38]} 36. Kc2 {[%clk 0:01:05]}  Ne6 {[%clk 0:00:07]} 37. Be3 {[%clk 0:00:59]}  Nc5 {[%clk 0:00:02]} 38. b6 {[%clk 0:00:53]} 1-0


[Site "https://www.chess.com"]

[Event "Titled Tuesday Blitz January 10 Late 2023"]
[White "Kozak, Adam"]
[Black "Jaferian, Koosha"]
[WhiteFideId "753246"]
[BlackFideId "12507440"]
[WhiteElo "2572"]
[BlackElo "2233"]
[Result "1-0"]
[Round "08"]
[TimeControl "180+2"]
[Date "2023.01.10"]
[WhiteClock "0:00:28"]
[BlackClock "0:00:01"]

1. e4 {[%clk 0:00:00]}  c6 {[%clk 0:00:00]} 2. a3 {[%clk 0:02:39]}  d5 {[%clk 0:03:00]} 3. exd5 {[%clk 0:02:38]}  cxd5 {[%clk 0:03:00]} 4. d4 {[%clk 0:02:32]}  Nc6 {[%clk 0:03:01]} 5. Nf3 {[%clk 0:02:30]}  Bg4 {[%clk 0:03:02]} 6. Be2 {[%clk 0:02:31]}  e6 {[%clk 0:03:01]} 7. h3 {[%clk 0:02:31]}  Bh5 {[%clk 0:03:02]} 8. c3 {[%clk 0:02:31]}  Bd6 {[%clk 0:03:02]} 9. Nbd2 {[%clk 0:02:30]}  Nf6 {[%clk 0:03:02]} 10. O-O {[%clk 0:02:31]}  O-O {[%clk 0:03:02]} 11. Re1 {[%clk 0:02:32]}  Rb8 {[%clk 0:03:02]} 12. Nf1 {[%clk 0:02:32]}  b5 {[%clk 0:03:02]} 13. Ng3 {[%clk 0:02:33]}  Bg6 {[%clk 0:03:01]} 14. Nh4 {[%clk 0:02:34]}  a5 {[%clk 0:03:01]} 15. Nxg6 {[%clk 0:02:34]}  hxg6 {[%clk 0:02:38]} 16. Bd3 {[%clk 0:02:34]}  b4 {[%clk 0:02:39]} 17. axb4 {[%clk 0:02:34]}  axb4 {[%clk 0:02:38]} 18. Qf3 {[%clk 0:02:35]}  bxc3 {[%clk 0:02:39]} 19. bxc3 {[%clk 0:02:34]}  Ne7 {[%clk 0:02:37]} 20. h4 {[%clk 0:02:35]}  Qc7 {[%clk 0:02:33]} 21. Bg5 {[%clk 0:02:34]}  Qxc3 {[%clk 0:02:30]} 22. Rad1 {[%clk 0:02:32]}  Bxg3 {[%clk 0:02:21]} 23. Qxg3 {[%clk 0:02:26]}  Nf5 {[%clk 0:02:04]} 24. Qh3 {[%clk 0:02:14]}  Ne4 {[%clk 0:02:04]} 25. Bf4 {[%clk 0:01:51]}  Rb3 {[%clk 0:01:38]} 26. h5 {[%clk 0:01:42]}  gxh5 {[%clk 0:01:22]} 27. Qxh5 {[%clk 0:01:41]}  Nf6 {[%clk 0:01:12]} 28. Qg5 {[%clk 0:01:34]}  Ne4 {[%clk 0:00:48]} 29. Qh5 {[%clk 0:01:25]}  Nf6 {[%clk 0:00:48]} 30. Qg5 {[%clk 0:01:23]}  Ne4 {[%clk 0:00:24]} 31. Bxe4 {[%clk 0:01:23]}  dxe4 {[%clk 0:00:24]} 32. d5 {[%clk 0:01:24]}  Qf6 {[%clk 0:00:24]} 33. d6 {[%clk 0:01:24]}  Rd8 {[%clk 0:00:15]} 34. Qg4 {[%clk 0:01:21]}  Rd7 {[%clk 0:00:11]} 35. Rxe4 {[%clk 0:01:18]}  Rb8 {[%clk 0:00:07]} 36. Rc4 {[%clk 0:01:17]}  Qb2 {[%clk 0:00:06]} 37. Rc5 {[%clk 0:00:51]}  Rbd8 {[%clk 0:00:02]} 38. Be5 {[%clk 0:00:36]}  Qb3 {[%clk 0:00:03]} 39. Rdc1 {[%clk 0:00:35]}  Qd3 {[%clk 0:00:01]} 40. Rc8 {[%clk 0:00:30]}  g6 {[%clk 0:00:01]} 41. Qg5 {[%clk 0:00:28]} 1-0


[Site "https://www.chess.com"]

[Event "Titled Tuesday Blitz January 10 Late 2023"]
[White "Adewumi, Tanitoluwa"]
[Black "Borges Feria, Yasel"]
[WhiteFideId "30966396"]
[BlackFideId "3504921"]
[WhiteElo "2283"]
[BlackElo "2439"]
[Result "0-1"]
[Round "08"]
[TimeControl "180+2"]
[Date "2023.01.10"]
[WhiteClock "0:00:03"]
[BlackClock "0:00:27"]

1. e4 {[%clk 0:00:00]}  c5 {[%clk 0:00:00]} 2. Nf3 {[%clk 0:02:50]}  d6 {[%clk 0:03:00]} 3. Bb5+ {[%clk 0:02:47]}  Nd7 {[%clk 0:03:01]} 4. c3 {[%clk 0:02:46]}  Nf6 {[%clk 0:02:58]} 5. Bd3 {[%clk 0:02:40]}  b6 {[%clk 0:02:54]} 6. O-O {[%clk 0:02:39]}  Bb7 {[%clk 0:02:50]} 7. Re1 {[%clk 0:02:37]}  e5 {[%clk 0:02:51]} 8. Bc2 {[%clk 0:02:37]}  Be7 {[%clk 0:02:43]} 9. d4 {[%clk 0:02:37]}  O-O {[%clk 0:02:42]} 10. Nbd2 {[%clk 0:02:37]}  cxd4 {[%clk 0:02:39]} 11. cxd4 {[%clk 0:02:34]}  Rc8 {[%clk 0:02:25]} 12. d5 {[%clk 0:02:31]}  Qc7 {[%clk 0:02:16]} 13. Bd3 {[%clk 0:02:31]}  Nc5 {[%clk 0:02:14]} 14. Bf1 {[%clk 0:02:30]}  Ba6 {[%clk 0:02:09]} 15. Bxa6 {[%clk 0:02:26]}  Nxa6 {[%clk 0:02:04]} 16. Qe2 {[%clk 0:01:52]}  Qb7 {[%clk 0:02:04]} 17. b3 {[%clk 0:01:42]}  Nb4 {[%clk 0:01:59]} 18. a3 {[%clk 0:01:33]}  Nc2 {[%clk 0:01:51]} 19. Bb2 {[%clk 0:01:27]}  Nxa1 {[%clk 0:01:48]} 20. Bxa1 {[%clk 0:01:19]}  b5 {[%clk 0:01:44]} 21. b4 {[%clk 0:01:15]}  Rc2 {[%clk 0:01:34]} 22. Qd1 {[%clk 0:01:02]}  Rfc8 {[%clk 0:01:28]} 23. Nb3 {[%clk 0:00:56]}  Qb6 {[%clk 0:01:29]} 24. Nc5 {[%clk 0:00:53]}  Ra2 {[%clk 0:01:25]} 25. Nd3 {[%clk 0:00:51]}  Rcc2 {[%clk 0:01:15]} 26. Rf1 {[%clk 0:00:45]}  Nxe4 {[%clk 0:01:13]} 27. Qe1 {[%clk 0:00:35]}  Ng5 {[%clk 0:01:01]} 28. Ndxe5 {[%clk 0:00:17]}  dxe5 {[%clk 0:00:47]} 29. Qxe5 {[%clk 0:00:06]}  Nxf3+ {[%clk 0:00:40]} 30. gxf3 {[%clk 0:00:05]}  Qg6+ {[%clk 0:00:34]} 31. Kh1 {[%clk 0:00:04]}  Rxf2 {[%clk 0:00:30]} 32. Rg1 {[%clk 0:00:03]}  Rxh2+ {[%clk 0:00:27]} 0-1


[Site "https://www.chess.com"]

[Event "Titled Tuesday Blitz January 10 Late 2023"]
[White "Pham, Khoi"]
[Black "Karacsonyi, Gellert"]
[WhiteFideId "1054988"]
[BlackFideId "764620"]
[WhiteElo "2355"]
[BlackElo "2385"]
[Result "1-0"]
[Round "08"]
[TimeControl "180+2"]
[Date "2023.01.10"]
[WhiteClock "0:00:59"]
[BlackClock "0:00:03"]

1. d4 {[%clk 0:00:00]}  Nf6 {[%clk 0:00:00]} 2. c4 {[%clk 0:03:00]}  e6 {[%clk 0:02:59]} 3. Nc3 {[%clk 0:03:01]}  Bb4 {[%clk 0:03:00]} 4. Qc2 {[%clk 0:03:01]}  O-O {[%clk 0:02:59]} 5. e4 {[%clk 0:03:01]}  d5 {[%clk 0:03:00]} 6. e5 {[%clk 0:03:01]}  Ne4 {[%clk 0:02:59]} 7. Bd3 {[%clk 0:03:01]}  c5 {[%clk 0:03:00]} 8. Nf3 {[%clk 0:03:02]}  cxd4 {[%clk 0:03:00]} 9. Nxd4 {[%clk 0:03:02]}  Qh4 {[%clk 0:02:58]} 10. O-O {[%clk 0:03:03]}  Nc6 {[%clk 0:02:36]} 11. Nxc6 {[%clk 0:02:51]}  bxc6 {[%clk 0:02:32]} 12. Nxe4 {[%clk 0:02:47]}  dxe4 {[%clk 0:02:33]} 13. Bxe4 {[%clk 0:02:47]}  Rb8 {[%clk 0:02:31]} 14. Be3 {[%clk 0:02:48]}  Ba6 {[%clk 0:02:22]} 15. a3 {[%clk 0:02:41]}  Be7 {[%clk 0:02:06]} 16. Rfd1 {[%clk 0:02:33]}  Rbd8 {[%clk 0:02:02]} 17. Bxa7 {[%clk 0:02:31]}  Qh5 {[%clk 0:01:59]} 18. f4 {[%clk 0:02:17]}  Rxd1+ {[%clk 0:01:59]} 19. Rxd1 {[%clk 0:02:11]}  f6 {[%clk 0:01:56]} 20. Rd7 {[%clk 0:02:06]}  Rf7 {[%clk 0:01:11]} 21. Qd1 {[%clk 0:01:57]}  Qh6 {[%clk 0:00:56]} 22. Rxe7 {[%clk 0:01:14]}  Rxe7 {[%clk 0:00:44]} 23. Qd8+ {[%clk 0:01:01]}  Kf7 {[%clk 0:00:42]} 24. Bc5 {[%clk 0:01:01]}  g5 {[%clk 0:00:42]} 25. Qxe7+ {[%clk 0:01:02]}  Kg8 {[%clk 0:00:03]} 26. Qe8+ {[%clk 0:00:59]} 1-0


[Site "https://www.chess.com"]

[Event "Titled Tuesday Blitz January 10 Late 2023"]
[White "Skvortsov, Andrei"]
[Black "Ansh M Shah"]
[WhiteFideId "24108600"]
[BlackFideId "25033379"]
[WhiteElo "2313"]
[BlackElo "2171"]
[Result "1/2-1/2"]
[Round "08"]
[TimeControl "180+2"]
[Date "2023.01.10"]
[WhiteClock "0:00:11"]
[BlackClock "0:00:06"]

1. d4 {[%clk 0:00:00]}  Nf6 {[%clk 0:00:00]} 2. c4 {[%clk 0:03:00]}  e6 {[%clk 0:02:58]} 3. g3 {[%clk 0:03:00]}  d5 {[%clk 0:02:58]} 4. Bg2 {[%clk 0:03:00]}  Be7 {[%clk 0:02:58]} 5. Nf3 {[%clk 0:03:00]}  O-O {[%clk 0:02:53]} 6. O-O {[%clk 0:02:58]}  dxc4 {[%clk 0:02:53]} 7. a4 {[%clk 0:02:57]}  Nbd7 {[%clk 0:02:53]} 8. Na3 {[%clk 0:02:49]}  Rb8 {[%clk 0:02:52]} 9. Nxc4 {[%clk 0:02:43]}  b6 {[%clk 0:02:35]} 10. Nfe5 {[%clk 0:02:43]}  Nxe5 {[%clk 0:02:34]} 11. Nxe5 {[%clk 0:02:43]}  Bb7 {[%clk 0:02:28]} 12. Bxb7 {[%clk 0:02:42]}  Rxb7 {[%clk 0:02:26]} 13. e3 {[%clk 0:02:40]}  c5 {[%clk 0:02:27]} 14. Qf3 {[%clk 0:02:32]}  Rc7 {[%clk 0:02:24]} 15. a5 {[%clk 0:02:31]}  Qd5 {[%clk 0:02:19]} 16. axb6 {[%clk 0:02:17]}  axb6 {[%clk 0:02:18]} 17. Qxd5 {[%clk 0:02:14]}  Nxd5 {[%clk 0:02:15]} 18. Ra6 {[%clk 0:02:03]}  Rb7 {[%clk 0:02:10]} 19. Nd3 {[%clk 0:01:48]}  cxd4 {[%clk 0:02:09]} 20. exd4 {[%clk 0:01:37]}  Bf6 {[%clk 0:02:06]} 21. Be3 {[%clk 0:01:35]}  Rc8 {[%clk 0:02:06]} 22. Rc1 {[%clk 0:01:35]}  Rxc1+ {[%clk 0:02:04]} 23. Bxc1 {[%clk 0:01:13]}  h6 {[%clk 0:01:51]} 24. Be3 {[%clk 0:01:10]}  Rc7 {[%clk 0:01:50]} 25. Nf4 {[%clk 0:01:09]}  Nxe3 {[%clk 0:01:44]} 26. fxe3 {[%clk 0:00:49]}  Rc1+ {[%clk 0:01:36]} 27. Kf2 {[%clk 0:00:50]}  Rc2+ {[%clk 0:01:36]} 28. Kf3 {[%clk 0:00:50]}  Rxb2 {[%clk 0:01:37]} 29. h4 {[%clk 0:00:50]}  g6 {[%clk 0:01:36]} 30. h5 {[%clk 0:00:49]}  g5 {[%clk 0:01:29]} 31. Nd3 {[%clk 0:00:46]}  Rb3 {[%clk 0:01:29]} 32. Ke2 {[%clk 0:00:46]}  g4 {[%clk 0:01:21]} 33. Nf2 {[%clk 0:00:45]}  Bg5 {[%clk 0:01:09]} 34. Nxg4 {[%clk 0:00:41]}  Kg7 {[%clk 0:00:57]} 35. Ra7 {[%clk 0:00:38]}  b5 {[%clk 0:00:52]} 36. Ne5 {[%clk 0:00:30]}  Rxe3+ {[%clk 0:00:38]} 37. Kf2 {[%clk 0:00:14]}  Kg8 {[%clk 0:00:38]} 38. Nxf7 {[%clk 0:00:13]}  Re4 {[%clk 0:00:20]} 39. Nxg5 {[%clk 0:00:12]}  hxg5 {[%clk 0:00:14]} 40. Rd7 {[%clk 0:00:06]}  b4 {[%clk 0:00:15]} 41. Kf3 {[%clk 0:00:05]}  Re1 {[%clk 0:00:14]} 42. Kg4 {[%clk 0:00:05]}  e5 {[%clk 0:00:12]} 43. dxe5 {[%clk 0:00:05]}  Rxe5 {[%clk 0:00:06]} 44. h6 {[%clk 0:00:05]}  Rb5 {[%clk 0:00:06]} 45. Rg7+ {[%clk 0:00:05]}  Kh8 {[%clk 0:00:04]} 46. Rc7 {[%clk 0:00:05]}  b3 {[%clk 0:00:04]} 47. Rc1 {[%clk 0:00:05]}  b2 {[%clk 0:00:04]} 48. Rb1 {[%clk 0:00:06]}  Kh7 {[%clk 0:00:05]} 49. Kh5 {[%clk 0:00:06]}  g4+ {[%clk 0:00:05]} 50. Kxg4 {[%clk 0:00:07]}  Kxh6 {[%clk 0:00:05]} 51. Kf4 {[%clk 0:00:07]}  Kg6 {[%clk 0:00:06]} 52. Ke4 {[%clk 0:00:08]}  Kg5 {[%clk 0:00:06]} 53. Kd4 {[%clk 0:00:08]}  Kg4 {[%clk 0:00:06]} 54. Kc3 {[%clk 0:00:09]}  Rb7 {[%clk 0:00:06]} 55. Rxb2 {[%clk 0:00:10]}  Rxb2 {[%clk 0:00:06]} 56. Kxb2 {[%clk 0:00:11]}  Kxg3 {[%clk 0:00:06]} 1/2-1/2


[Site "https://www.chess.com"]

[Event "Titled Tuesday Blitz January 10 Late 2023"]
[White "Suvorov, Alexander"]
[Black "Tanenbaum, Zachary"]
[WhiteFideId "12977063"]
[BlackFideId "2060850"]
[WhiteElo "2338"]
[BlackElo "2261"]
[Result "0-1"]
[Round "08"]
[TimeControl "180+2"]
[Date "2023.01.10"]
[WhiteClock "0:00:04"]
[BlackClock "0:00:12"]

1. c4 {[%clk 0:00:00]}  e5 {[%clk 0:00:00]} 2. Nc3 {[%clk 0:03:00]}  Nc6 {[%clk 0:02:59]} 3. Nf3 {[%clk 0:02:59]}  Nf6 {[%clk 0:03:00]} 4. d3 {[%clk 0:02:58]}  Bb4 {[%clk 0:03:01]} 5. Bd2 {[%clk 0:02:58]}  d5 {[%clk 0:03:00]} 6. cxd5 {[%clk 0:02:51]}  Nxd5 {[%clk 0:02:53]} 7. g3 {[%clk 0:02:49]}  O-O {[%clk 0:02:52]} 8. Bg2 {[%clk 0:02:45]}  Nxc3 {[%clk 0:02:46]} 9. Bxc3 {[%clk 0:02:44]}  Bxc3+ {[%clk 0:02:37]} 10. bxc3 {[%clk 0:02:42]}  Re8 {[%clk 0:02:36]} 11. O-O {[%clk 0:02:43]}  Bf5 {[%clk 0:02:32]} 12. Nd2 {[%clk 0:02:41]}  Qd7 {[%clk 0:02:30]} 13. Rb1 {[%clk 0:02:39]}  Rab8 {[%clk 0:02:25]} 14. Qa4 {[%clk 0:02:35]}  Nd4 {[%clk 0:02:23]} 15. Qd1 {[%clk 0:02:27]}  Nxe2+ {[%clk 0:02:19]} 16. Qxe2 {[%clk 0:02:22]}  Bxd3 {[%clk 0:02:09]} 17. Qe3 {[%clk 0:02:21]}  Bxf1 {[%clk 0:02:10]} 18. Nxf1 {[%clk 0:02:20]}  b6 {[%clk 0:02:09]} 19. Qe4 {[%clk 0:02:16]}  Rbd8 {[%clk 0:02:07]} 20. h4 {[%clk 0:02:13]}  c5 {[%clk 0:02:02]} 21. Ne3 {[%clk 0:02:10]}  Qd3 {[%clk 0:01:57]} 22. Qxd3 {[%clk 0:02:08]}  Rxd3 {[%clk 0:01:56]} 23. c4 {[%clk 0:01:42]}  Rd2 {[%clk 0:01:57]} 24. Ra1 {[%clk 0:01:41]}  e4 {[%clk 0:01:39]} 25. a4 {[%clk 0:01:41]}  g6 {[%clk 0:01:33]} 26. g4 {[%clk 0:01:40]}  Red8 {[%clk 0:01:20]} 27. Bxe4 {[%clk 0:01:39]}  R8d4 {[%clk 0:01:01]} 28. Bd5 {[%clk 0:01:37]}  Rf4 {[%clk 0:01:00]} 29. Rf1 {[%clk 0:01:24]}  Ra2 {[%clk 0:00:59]} 30. Bc6 {[%clk 0:00:48]}  h5 {[%clk 0:00:58]} 31. gxh5 {[%clk 0:00:49]}  gxh5 {[%clk 0:00:56]} 32. Kg2 {[%clk 0:00:41]}  Rxh4 {[%clk 0:00:56]} 33. Kg3 {[%clk 0:00:41]}  Rd4 {[%clk 0:00:47]} 34. Rh1 {[%clk 0:00:39]}  Rd6 {[%clk 0:00:47]} 35. Bd5 {[%clk 0:00:33]}  Rg6+ {[%clk 0:00:47]} 36. Kf3 {[%clk 0:00:27]}  Rf6+ {[%clk 0:00:46]} 37. Ke4 {[%clk 0:00:25]}  Rfxf2 {[%clk 0:00:43]} 38. Rxh5 {[%clk 0:00:26]}  Rxa4 {[%clk 0:00:42]} 39. Nf5 {[%clk 0:00:25]}  Raa2 {[%clk 0:00:38]} 40. Ke5 {[%clk 0:00:24]}  Rae2+ {[%clk 0:00:35]} 41. Kd6 {[%clk 0:00:21]}  a5 {[%clk 0:00:34]} 42. Rg5+ {[%clk 0:00:21]}  Kf8 {[%clk 0:00:23]} 43. Rh5 {[%clk 0:00:19]}  Rh2 {[%clk 0:00:20]} 44. Rg5 {[%clk 0:00:13]}  a4 {[%clk 0:00:20]} 45. Rg7 {[%clk 0:00:11]}  Rh6+ {[%clk 0:00:18]} 46. Kd7 {[%clk 0:00:11]}  Rf6 {[%clk 0:00:16]} 47. Rg5 {[%clk 0:00:08]}  Re5 {[%clk 0:00:15]} 48. Rg1 {[%clk 0:00:06]}  Rfxf5 {[%clk 0:00:16]} 49. Ra1 {[%clk 0:00:03]}  Re7+ {[%clk 0:00:14]} 50. Kd6 {[%clk 0:00:04]}  Ra7 {[%clk 0:00:14]} 51. Kc6 {[%clk 0:00:04]}  Rf6+ {[%clk 0:00:14]} 52. Kb5 {[%clk 0:00:04]}  Ra5# {[%clk 0:00:12]} 0-1


[Site "https://www.chess.com"]

[Event "Titled Tuesday Blitz January 10 Late 2023"]
[White "Sielecki, Christof"]
[Black "Martinez Ramirez, Lennis"]
[WhiteFideId "4620437"]
[BlackFideId "3509079"]
[WhiteElo "2419"]
[BlackElo "2426"]
[Result "1-0"]
[Round "08"]
[TimeControl "180+2"]
[Date "2023.01.10"]
[WhiteClock "0:00:46"]
[BlackClock "0:00:58"]

1. e4 {[%clk 0:00:00]}  c5 {[%clk 0:00:00]} 2. Nf3 {[%clk 0:03:00]}  d6 {[%clk 0:02:59]} 3. Bb5+ {[%clk 0:03:00]}  Bd7 {[%clk 0:02:59]} 4. Bxd7+ {[%clk 0:03:00]}  Qxd7 {[%clk 0:02:59]} 5. c4 {[%clk 0:02:59]}  Nc6 {[%clk 0:02:59]} 6. Nc3 {[%clk 0:02:58]}  g6 {[%clk 0:02:59]} 7. d4 {[%clk 0:02:58]}  cxd4 {[%clk 0:02:59]} 8. Nxd4 {[%clk 0:02:58]}  Bg7 {[%clk 0:02:59]} 9. Be3 {[%clk 0:02:59]}  Nh6 {[%clk 0:02:59]} 10. f3 {[%clk 0:02:59]}  f5 {[%clk 0:02:59]} 11. Qd2 {[%clk 0:02:55]}  Nf7 {[%clk 0:02:58]} 12. exf5 {[%clk 0:02:44]}  gxf5 {[%clk 0:02:57]} 13. O-O {[%clk 0:02:37]}  O-O {[%clk 0:02:56]} 14. f4 {[%clk 0:02:31]}  Rac8 {[%clk 0:02:50]} 15. b3 {[%clk 0:02:21]}  e6 {[%clk 0:02:13]} 16. Rad1 {[%clk 0:02:20]}  a6 {[%clk 0:01:55]} 17. Rf3 {[%clk 0:02:14]}  Qe7 {[%clk 0:01:54]} 18. Rg3 {[%clk 0:02:13]}  Kh8 {[%clk 0:01:47]} 19. Nd5 {[%clk 0:02:08]}  exd5 {[%clk 0:01:46]} 20. Nxf5 {[%clk 0:01:41]}  Qf6 {[%clk 0:01:42]} 21. Nxg7 {[%clk 0:01:29]}  dxc4 {[%clk 0:01:39]} 22. Nh5 {[%clk 0:01:28]}  Qf5 {[%clk 0:01:28]} 23. Bd4+ {[%clk 0:01:25]}  Nfe5 {[%clk 0:01:23]} 24. fxe5 {[%clk 0:01:20]}  dxe5 {[%clk 0:01:19]} 25. Qh6 {[%clk 0:01:14]}  Rg8 {[%clk 0:01:19]} 26. Rf1 {[%clk 0:01:07]}  Rg6 {[%clk 0:01:18]} 27. Rxg6 {[%clk 0:00:48]}  Qxg6 {[%clk 0:00:58]} 28. Rf8+ {[%clk 0:00:46]} 1-0


[Site "https://www.chess.com"]